Workbook

Sheet Calculation of LOD (expt data)
C1: Concentration (x) | D1: Signal (y) | E1: x_fit | F1: y_fit | G1: x^2 | H1: sigma_x | I1: sigma_y | J1: mean_x+conf_x | K1: Signal(Y) | L1: mean_x-conf_x | M1: Signal(y) | N1: d_i^2 | O1: mean_x+sigma_x | P1: mean_x+sigma_x
A2: t = | B2: 3 | C2: ='[1]Calculation of LOD (simul data)'!F2 -> 0 | F2: =m*C2+b -> 10.07478263
A3: n= | B3: =COUNT(D2:D1048576) -> 10 | C3: 1 | D3: 10.96704417 | E3: =(D3-b)/m -> 0.8745933391 | F3: =m*C3+b -> 11.09498425 | G3: =C3^2 -> 1 | H3: =sigma_y/ABS(m)*SQRT(1/k+E3^2*n/D+SUM($G$2:$G$107)/D-2*E3*SUM($C$2:$C$107)/D) -> 10.79201426 | I3: =sigma_y -> 9.908532775 | J3: =E3+t*H3 -> 33.25063611 | K3: =D3 -> 10.96704417 | L3: =E3-t*H3 -> -31.50144943 | M3: =D3 -> 10.96704417 | N3: =(D3-m*C3-b)^2 -> 0.01636866349 | O3: =E3+H3 -> 11.6666076 | P3: =E3-H3 -> -9.917420917
A4: k= | B4: 1 | C4: 4 | D4: 13.7266562 | E4: =(D4-b)/m -> 3.579560666 | F4: =m*C4+b -> 14.15558909 | G4: =C4^2 -> 16 | H4: =sigma_y/ABS(m)*SQRT(1/k+E4^2*n/D+SUM($G$2:$G$107)/D-2*E4*SUM($C$2:$C$107)/D) -> 10.7101081 | I4: 9.908532775 | J4: =E4+t*H4 -> 35.70988496 | K4: =D4 -> 13.7266562 | L4: =E4-t*H4 -> -28.55076363 | M4: =D4 -> 13.7266562 | N4: =(D4-m*C4-b)^2 -> 0.1839834208 | O4: =E4+H4 -> 14.28966876 | P4: =E4-H4 -> -7.130547431
A5: intercept= | B5: =INTERCEPT(D2:D107,C2:C107) -> 10.07478263 | C5: 9 | D5: 21.67743258 | E5: 11.37289904 | F5: 19.25659715 | G5: 81 | H5: 10.50555084 | I5: 9.908532775 | J5: 42.88955157 | K5: 21.67743258 | L5: -20.14375348 | M5: 21.67743258 | N5: 5.860444178 | O5: 21.87844988 | P5: 0.8673482009
A6: slope = | B6: =SLOPE(D2:D107,C2:C107) -> 1.020201613 | C6: 16 | D6: 28.05018029 | E6: 17.61945622 | F6: 26.39800844 | G6: 256 | H6: 10.3766672 | I6: 9.908532775 | J6: 48.74945781 | K6: 28.05018029 | L6: -13.51054537 | M6: 28.05018029 | N6: 2.729671822 | O6: 27.99612342 | P6: 7.242789025
A7: Sigma_slope = | B7: =SQRT(B10^2*n/D) -> 0.09664906613 | C7: 25 | D7: 36.03149269 | E7: 25.44272596 | F7: 35.57982296 | G7: 625 | H7: 10.26120746 | I7: 9.908532775 | J7: 56.22634834 | K7: 36.03149269 | L7: -5.340896428 | M7: 36.03149269 | N7: 0.2040055494 | O7: 35.70393342 | P7: 15.1815185
A8: R^2 = | B8: =RSQ(D2:D107,C2:C107) -> 0.9330114938 | C8: 36 | D8: 51.96673578 | E8: 41.06242592 | F8: 46.8020407 | G8: 1296 | H8: 10.18926774 | I8: 9.908532775 | J8: 71.63022913 | K8: 51.96673578 | L8: 10.4946227 | M8: 51.96673578 | N8: 26.67407531 | O8: 51.25169366 | P8: 30.87315818
A9: D = | B9: =SUM(G2:G107)*B3-SUM(C2:C107)^2 -> 105105 | C9: 49 | D9: 55.15322631 | E9: 44.18581887 | F9: 60.06466166 | G9: 2401 | H9: 10.20060732 | I9: 9.908532775 | J9: 74.78764083 | K9: 55.15322631 | L9: 13.58399692 | M9: 55.15322631 | N9: 24.12219722 | O9: 54.38642619 | P9: 33.98521155
A10: sigma_y = | B10: =SQRT(SUM(N2:N107)/(n-2)) -> 9.908532775 | C10: 64 | D10: 74.65732876 | E10: 63.3037091 | F10: 75.36768585 | G10: 4096 | H10: 10.45388646 | I10: 9.908532775 | J10: 94.66536848 | K10: 74.65732876 | L10: 31.94204973 | M10: 74.65732876 | N10: 0.5046072018 | O10: 73.75759556 | P10: 52.84982265
A11: from eq(11) using s[y]: LOD[2] = | B11: =2/D/((n/D-ABS(m)^2/t^2/sigma_y^2))*(SUM(C2:C107)-SQRT(SUM(C2:C107)^2-D^2*(n/D-ABS(m)^2/t^2/sigma_y^2)*(SUM(G2:G107)/D+1/k))) -> 61.28130313 | C11: 81 | D11: 71.9956137 | E11: 60.69470023 | F11: 92.71111327 | G11: 6561 | H11: 10.40111832 | I11: 9.908532775 | J11: 91.8980552 | K11: 71.9956137 | L11: 29.49134526 | M11: 71.9956137 | N11: 429.1319225 | O11: 71.09581856 | P11: 50.29358191
A12: from eq(15) Currie and Svehla: LOD[3] = | B12: =2*t*sigma_y/(n*t^2*sigma_y^2-D*m^2)*(t*sigma_y*SUM(C2:C107)-SQRT(D*m^2*SUM(G2:G73)+m^2*D^2)) -> 63.85632291 | C12: 100 | D12: 129.2997368 | E12: 116.8641107 | F12: 112.0949439 | G12: 10000 | H12: 12.60459104 | I12: 9.908532775 | J12: 154.6778838 | K12: 129.2997368 | L12: 79.05033752 | M12: 129.2997368 | N12: 296.0048982 | O12: 129.4687017 | P12: 104.2595196
A13: assuming error free calibration: Xc = LOD[1] = | B13: =t*(sigma_y)/m -> 29.13698425
B15: =t*SQRT(sigma_y^2+B5^2)+b -> 52.46726313
A16: 0 | B16: =b+m*B11/2 -> 41.33442478
A17: =B11 -> 61.28130313 | B17: =B16 -> 41.33442478
A18: =A17 -> 61.28130313 | B18: 0
A22: sigma_intercept | B22: =B7*(SQRT(SUM(G2:G107)/n)) -> 4.86453098
A23: t x s_0 | B23: =SQRT(B22^2+sigma_y^2)*t -> 33.114712
A25: Please change only values in red. All other values are calculated.
A28: Please cite "Detection limits of chemical sensors: applications and misapplications", Hans-Peter Loock* and Peter D Wentzell, Sens. Act. B: Chem, (2012)

Sheet Calculation of LOD (simul data)
A1: t = | B1: 3 | D1: Random Numbers | F1: x | G1: y | H1: x_fit | I1: y_fit | J1: x^2 | K1: sigma_x | L1: d_i^2 | M1: mean_x+sigma_x | N1: mean_x+sigma_x | O1: mean_x+conf_x | P1: mean_x-conf_x
A2: n= | B2: =COUNT(F3:F101) -> 10 | F2: 0 | I2: =m*F2+b -> 0.3317198366
A3: k= | B3: 1 | D3: =SQRT(-2*LN(RAND()))* COS(2*PI()*RAND()) -> -1.96932271 | E3: =SQRT(-2*LN(RAND()))* SIN(2*PI()*RAND()) -> 1.809116293 | F3: 1 | G3: =F3*(1+$B$18*PI()*D3)+$B$19*(E3) -> 0.7811153267 | H3: =(G3-b)/m -> 0.4648110077 | I3: =m*F3+b -> 1.298554706 | J3: =F3^2 -> 1 | K3: =sigma_y/ABS(m)*SQRT(1/k+F3^2*n/D+SUM($J$3:$J$101)/D-2*F3*SUM($F$3:$F$101)/D) -> 4.851113171 | L3: =(G3-m*F3-b)^2 -> 0.2677435117 | M3: =H3+K3 -> 5.315924179 | N3: =H3-K3 -> -4.386302163 | O3: =H3+t*K3 -> 15.01815052 | P3: =H3-t*K3 -> -14.08852851
A4: intercept= | B4: =INTERCEPT(G3:G101,F3:F101) -> 0.3317198366 | D4: 0.7097505813 | E4: 0.2576260783 | F4: =2^$B$17 -> 4 | G4: =F4*(1+$B$18*PI()*D4)+$B$19*(E4) -> 4.458830746 | H4: 4.268682314 | I4: 4.199059316 | J4: 16 | K4: 4.810541889 | L4: 0.06748119608 | M4: 9.079224203 | N4: -0.5418595746 | O4: 18.70030798 | P4: -10.16294335
A5: Sigma_intercept= | B5: =Sigma_slope*(SQRT(SUM(J3:J101)/n)) -> 2.07302181 | D5: 0.2492274532 | E5: -0.5212344324 | F5: =3^$B$17 -> 9 | G5: 9.32627529 | H5: 9.303093769 | I5: 9.033233665 | J5: 81 | K5: 4.749799329 | L5: 0.08587339379 | M5: 14.0528931 | N5: 4.55329444 | O5: 23.55249175 | P5: -4.946304217
A6: slope= | B6: =SLOPE(G3:G101,F3:F101) -> 0.9668348698 | D6: 0.8238698296 | E6: 1.182618858 | F6: =4^$B$17 -> 16 | G6: 18.12974167 | H6: 18.40854357 | I6: 15.80107775 | J6: 256 | K6: 4.679746266 | L6: 5.422675617 | M6: 23.08828984 | N6: 13.72879731 | O6: 32.44778237 | P6: 4.369304776
A7: Sigma_slope= | B7: =SQRT(B10^2*n/D) -> 0.04118703793 | D7: -0.6027013247 | E7: 0.07531795547 | F7: =5^$B$17 -> 25 | G7: 22.63696333 | H7: 23.0703755 | I7: 24.50259158 | J7: 625 | K7: 4.616497213 | L7: 3.480568774 | M7: 27.68687271 | N7: 18.45387829 | O7: 36.91986714 | P7: 9.220883863
A8: R^2= | B8: =RSQ(G3:G101,F3:F101) -> 0.9856897657 | D8: 0.4680967427 | E8: 0.9026791267 | F8: =6^$B$17 -> 36 | G8: 38.69215867 | H8: 39.67630878 | I8: 35.13777515 | J8: 1296 | K8: 4.581773754 | L8: 12.63364224 | M8: 44.25808254 | N8: 35.09453503 | O8: 53.42163005 | P8: 25.93098752
A9: D = | B9: =SUM(J3:J101)*B2-SUM(F3:F101)^2 -> 105105 | D9: -0.003252151621 | E9: 1.599893823 | F9: =7^$B$17 -> 49 | G9: 49.0549632 | H9: 50.39458638 | I9: 47.70662846 | J9: 2401 | K9: 4.602323826 | L9: 1.818006574 | M9: 54.99691021 | N9: 45.79226255 | O9: 64.20155786 | P9: 36.5876149
A10: sigma_y= | B10: =SQRT(SUM(L3:L101)/(n-2)) -> 4.222525179 | D10: -1.177461728 | E10: -0.6077393793 | F10: =8^$B$17 -> 64 | G10: 52.13247666 | H10: 53.57766713 | I10: 62.20915151 | J10: 4096 | K10: 4.707584193 | L10: 101.5393759 | M10: 58.28525132 | N10: 48.87008294 | O10: 67.70041971 | P10: 39.45491455
A11: estimated x[LOD] from eq (11) = | B11: =2/D/((n/D-ABS(m)^2/t^2/sigma_y^2))*(SUM(F3:F101)-SQRT(SUM(F3:F101)^2-D^2*(n/D-ABS(m)^2/t^2/sigma_y^2)*(SUM(J3:J101)/D+1/k))) -> 28.18245066 | D11: -0.1437939062 | E11: 0.4986945934 | F11: =9^$B$17 -> 81 | G11: 79.19538012 | H11: 81.56890359 | I11: =m*F11+b -> 78.64534429 | J11: =F11^2 -> 6561 | K11: 4.925362779 | L11: 0.3025394107 | M11: 86.49426637 | N11: 76.64354081 | O11: 96.34499192 | P11: 66.79281525
A12: estimated x(LOD) from Currie&Svehla= | B12: ='Eqns from Currie and Svehla'!B15 -> 28.39804369 | D12: 0.06992023013 | E12: 0.8482765707 | F12: =10^$B$17 -> 100 | G12: 101.1407182 | H12: =(G12-b)/m -> 104.267028 | I12: =m*F12+b -> 97.01520682 | J12: =F12^2 -> 10000 | K12: =sigma_y/ABS(m)*SQRT(1/k+F12^2*n/D+SUM($J$3:$J$101)/D-2*F12*SUM($F$3:$F$101)/D) -> 5.276849634 | L12: =(G12-m*F12-b)^2 -> 17.01984445 | M12: =H12+K12 -> 109.5438776 | N12: =H12-K12 -> 98.99017832 | O12: 120.0975769 | P12: 88.43647905
A13: estimated x(LOD) from eq (15) = | B13: =2*t*sigma_y/(n*t^2*sigma_y^2-D*m^2)*(t*sigma_y*SUM(F3:F101)-SQRT(D*m^2*SUM(J3:J67)+m^2*D^2)) -> 28.39804369
A14: 0 | B14: =b+m*B11/2 -> 13.95560785
A15: =B11 -> 28.18245066 | B15: =B14 -> 13.95560785
A16: =A15 -> 28.18245066 | B16: 0
A17: Concentration range power(1-5) = | B17: 2
A18: Average slope variance (0-1) = | B18: 0.05
A19: Average intercept variance (0-1) = | B19: 0.05
A21: The LOD is caluclated using equation (11) in the manuscript. --- Please change only values in red/bold face. All other values are calculated. To generate new random numbers, select an empty cell and press <delete>.

Sheet Eqns from Currie and Svehla
A1: t = | B1: 3 | D1: Random Numbers | F1: x | G1: y | H1: x_fit | I1: y_fit | J1: (y-yfit)^2 | K1: x^2 | L1: s_x | M1: mean_x+sigma_x | N1: mean_x+sigma_x | O1: mean_x+conf_x | P1: mean_x-conf_x
A2: m = | B2: =COUNT(F3:F101) -> 10 | F2: ='Calculation of LOD (simul data)'!F2 -> 0 | I2: =b*F2+a -> 0.3317198366
A3: n = | B3: 1 | D3: ='Calculation of LOD (simul data)'!D3 -> -1.96932271 | E3: ='Calculation of LOD (simul data)'!E3 -> 1.809116293 | F3: ='Calculation of LOD (simul data)'!F3 -> 1 | G3: ='Calculation of LOD (simul data)'!G3 -> 0.7811153267 | H3: =(G3-a)/b -> 0.4648110077 | I3: =b*F3+a -> 1.298554706 | J3: =(G3-I3)^2 -> 0.2677435117 | K3: =F3^2 -> 1 | L3: =s_y/ABS(b)*SQRT(1/n+1/m+m*(I3-SUM($I$3:$I$102)/m)^2/((m*SUM($K$3:$K$102)-SUM($F$3:$F$102)^2)*b^2)) -> 4.851113171 | M3: =H3+L3 -> 5.315924179 | N3: =H3-L3 -> -4.386302163 | O3: =H3+t*L3 -> 15.01815052 | P3: =H3-t*L3 -> -14.08852851
A4: intercept, a= | B4: =INTERCEPT(G3:G101,F3:F101) -> 0.3317198366 | D4: ='Calculation of LOD (simul data)'!D4 -> 0.7097505813 | E4: ='Calculation of LOD (simul data)'!E4 -> 0.2576260783 | F4: ='Calculation of LOD (simul data)'!F4 -> 4 | G4: ='Calculation of LOD (simul data)'!G4 -> 4.458830746 | H4: =(G4-a)/b -> 4.268682314 | I4: 4.199059316 | J4: =(G4-I4)^2 -> 0.06748119608 | K4: 16 | L4: 4.810541889 | M4: 9.079224203 | N4: -0.5418595746 | O4: =H4+t*L4 -> 18.70030798 | P4: -10.16294335
A5: s_a= | B5: =s_b*(SQRT(SUM(K3:K101)/m)) -> 2.07302181 | D5: ='Calculation of LOD (simul data)'!D5 -> 0.2492274532 | E5: ='Calculation of LOD (simul data)'!E5 -> -0.5212344324 | F5: ='Calculation of LOD (simul data)'!F5 -> 9 | G5: ='Calculation of LOD (simul data)'!G5 -> 9.32627529 | H5: 9.303093769 | I5: 9.033233665 | J5: 0.08587339379 | K5: 81 | L5: 4.749799329 | M5: 14.0528931 | N5: 4.55329444 | O5: 23.55249175 | P5: -4.946304217
A6: slope,b= | B6: =SLOPE(G3:G101,F3:F101) -> 0.9668348698 | D6: ='Calculation of LOD (simul data)'!D6 -> 0.8238698296 | E6: ='Calculation of LOD (simul data)'!E6 -> 1.182618858 | F6: ='Calculation of LOD (simul data)'!F6 -> 16 | G6: ='Calculation of LOD (simul data)'!G6 -> 18.12974167 | H6: 18.40854357 | I6: 15.80107775 | J6: 5.422675617 | K6: 256 | L6: 4.679746266 | M6: 23.08828984 | N6: 13.72879731 | O6: =H6+t*L6 -> 32.44778237 | P6: 4.369304776
A7: s_b= | B7: =SQRT(m*s_y^2/(m*SUM(K3:K101)-SUM(F3:F101)^2)) -> 0.04118703793 | D7: ='Calculation of LOD (simul data)'!D7 -> -0.6027013247 | E7: ='Calculation of LOD (simul data)'!E7 -> 0.07531795547 | F7: ='Calculation of LOD (simul data)'!F7 -> 25 | G7: ='Calculation of LOD (simul data)'!G7 -> 22.63696333 | H7: 23.0703755 | I7: 24.50259158 | J7: 3.480568774 | K7: 625 | L7: 4.616497213 | M7: 27.68687271 | N7: 18.45387829 | O7: 36.91986714 | P7: 9.220883863
A8: s_y= | B8: =SQRT(SUM(J3:J101)/(m-2)) -> 4.222525179 | D8: ='Calculation of LOD (simul data)'!D8 -> 0.4680967427 | E8: ='Calculation of LOD (simul data)'!E8 -> 0.9026791267 | F8: ='Calculation of LOD (simul data)'!F8 -> 36 | G8: ='Calculation of LOD (simul data)'!G8 -> 38.69215867 | H8: 39.67630878 | I8: 35.13777515 | J8: 12.63364224 | K8: 1296 | L8: 4.581773754 | M8: 44.25808254 | N8: 35.09453503 | O8: 53.42163005 | P8: 25.93098752
A9: r(a,b)= | B9: =-AVERAGE(F3:F101)/SQRT(SUM(K3:K101)/m) -> -0.7649224686 | D9: ='Calculation of LOD (simul data)'!D9 -> -0.003252151621 | E9: ='Calculation of LOD (simul data)'!E9 -> 1.599893823 | F9: ='Calculation of LOD (simul data)'!F9 -> 49 | G9: ='Calculation of LOD (simul data)'!G9 -> 49.0549632 | H9: 50.39458638 | I9: 47.70662846 | J9: 1.818006574 | K9: 2401 | L9: 4.602323826 | M9: 54.99691021 | N9: 45.79226255 | O9: 64.20155786 | P9: 36.5876149
A10: R^2= | B10: =r_a_b^2 -> 0.585106383 | D10: ='Calculation of LOD (simul data)'!D10 -> -1.177461728 | E10: ='Calculation of LOD (simul data)'!E10 -> -0.6077393793 | F10: ='Calculation of LOD (simul data)'!F10 -> 64 | G10: ='Calculation of LOD (simul data)'!G10 -> 52.13247666 | H10: 53.57766713 | I10: 62.20915151 | J10: 101.5393759 | K10: 4096 | L10: 4.707584193 | M10: 58.28525132 | N10: 48.87008294 | O10: 67.70041971 | P10: 39.45491455
A11: s_0= | B11: =SQRT(s_a^2+s_y^2) -> 4.703949225 | D11: ='Calculation of LOD (simul data)'!D11 -> -0.1437939062 | E11: ='Calculation of LOD (simul data)'!E11 -> 0.4986945934 | F11: ='Calculation of LOD (simul data)'!F11 -> 81 | G11: ='Calculation of LOD (simul data)'!G11 -> 79.19538012 | H11: 81.56890359 | I11: 78.64534429 | J11: 0.3025394107 | K11: 6561 | L11: 4.925362779 | M11: 86.49426637 | N11: 76.64354081 | O11: 96.34499192 | P11: 66.79281525
A12: K = | B12: =1+r_a_b*(s_a/s_0)*t*(s_b/b) -> 0.9569187622 | D12: ='Calculation of LOD (simul data)'!D12 -> 0.06992023013 | E12: ='Calculation of LOD (simul data)'!E12 -> 0.8482765707 | F12: ='Calculation of LOD (simul data)'!F12 -> 100 | G12: ='Calculation of LOD (simul data)'!G12 -> 101.1407182 | H12: =(G12-a)/b -> 104.267028 | I12: =b*F12+a -> 97.01520682 | J12: =(G12-I12)^2 -> 17.01984445 | K12: =F12^2 -> 10000 | L12: =s_y/ABS(b)*SQRT(1/n+1/m+m*(I12-SUM($I$3:$I$102)/m)^2/((m*SUM($K$3:$K$102)-SUM($F$3:$F$102)^2)*b^2)) -> 5.276849634 | M12: =H12+L12 -> 109.5438776 | N12: =H12-L12 -> 98.99017832 | O12: =H12+t*L12 -> 120.0975769 | P12: =H12-t*L12 -> 88.43647905
A13: I = | B13: =1-t^2*(s_b/b)^2 -> 0.9836672611
A14: RSQ = | B14: =RSQ(G3:G101,F3:F101) -> 0.9856897657
A15: estimated x(LOD) from Currie&Svehla= | B15: =2*t*s_0/b*(K/I) -> 28.39804369
A16: estimated LOD from eq (11) = | B16: ='Calculation of LOD (simul data)'!B11 -> 28.18245066
A17: 0 | B17: =t*s_0+a -> 14.44356751
A18: =B15 -> 28.39804369 | B18: =B17 -> 14.44356751
A19: =A18 -> 28.39804369 | B19: 0
A21: The LOD is calculated using equation (4.19) from Currie and Svehla, Pure& Appl. Chem, 66,3(1996) 595 --- Please change only values in red/bold face. All other values are calculated. To generate new random numbers, select an empty cell and press <delete>.
